fUSD/lending_fUSD_20240404
["ID","MTS","AMOUNT","RATE_DAILY","PERIOD"]
[321458534,1712200298460,-4594.4,0.00055068,120]
[321458535,1712200298471,-500.0,0.00055068,120]
[321458536,1712200298482,-468.35157898,0.00055068,120]
[321458537,1712200298493,-3281.58,0.00055068,120]
[321458538,1712200298504,-4452.74,0.00055068,120]
[321458539,1712200298515,-500.0,0.00055068,120]
[321458540,1712200298525,-500.0,0.00055068,2]
[321458541,1712200298536,-5676.39,0.00055068,120]
[321458542,1712200298546,-500.0,0.00055068,120]
[321458543,1712200298557,-799.28,0.00055068,120]
[321458544,1712200298567,-500.0,0.00055068,120]
[321458545,1712200298578,-2184.04,0.00055068,120]
[321458546,1712200298590,-2848.68,0.00055068,120]
[321458547,1712200298600,-871.82,0.00055068,120]
[321458548,1712200298853,-543.4755741,0.00055068,120]
[321458549,1712200298864,-500.0,0.00055068,120]
[321458550,1712200298874,-500.0,0.00055068,120]
[321458551,1712200298884,-577.33,0.00055068,120]
[321458552,1712200298893,-500.0,0.00055068,120]
[321458553,1712200298904,-500.0,0.00055068,120]
[321458554,1712200298914,-1635.35,0.00055068,120]
[321458555,1712200298923,-2850.37,0.00055068,120]
[321458556,1712200298933,-500.0,0.00055068,120]
[321458557,1712200298942,-4917.1,0.00055068,120]
[321458558,1712200298952,-500.0,0.00055068,120]
[321458559,1712200298961,-500.0,0.00055068,120]
[321458560,1712200298971,-888.72,0.00055068,120]
[321458561,1712200298982,-2799.35,0.00055068,120]
[321458562,1712200298991,-500.0,0.00055068,120]
[321458563,1712200299001,-1108.08,0.00055068,120]
[321458564,1712200299011,-2491.48,0.00055068,120]
[321458565,1712200299021,-2129.0,0.00055068,120]
[321458566,1712200299030,-500.0,0.00055068,120]
[321458567,1712200299039,-3318.06,0.00055068,120]
[321458568,1712200299048,-1922.21,0.00055068,120]
[321458569,1712200299057,-635.38,0.00055068,120]
[321458570,1712200299066,-500.0,0.00055068,120]
[321458571,1712200299076,-1842.18,0.00055068,120]
[321458572,1712200299086,-500.0,0.00055068,120]
[321458573,1712200299095,-2240.52,0.00055068,120]
[321458574,1712200299104,-445.37550512,0.00055068,120]
[321458575,1712200299114,-500.0,0.00055068,120]
[321458576,1712200299123,-500.0,0.00055068,120]
[321458577,1712200299133,-7532.02,0.00055068,120]
[321458578,1712200299142,-508.65651696,0.00055068,120]
[321458579,1712200299151,-2789.6,0.00055068,120]
[321458580,1712200299160,-500.0,0.00055068,120]
[321458581,1712200299169,-500.0,0.00055068,120]
[321458582,1712200299178,-19673.78,0.00055068,120]
[321458583,1712200299188,-6100.85,0.00055068,120]
[321458584,1712200299197,-500.0,0.00055068,120]
[321458585,1712200299206,-500.0,0.00055068,120]
[321458586,1712200299216,-552.29748191,0.00055068,120]
[321458587,1712200299225,-500.0,0.00055068,2]
[321458588,1712200299234,-400.0,0.0005507,30]
[321458589,1712200299243,-1000.0,0.0005507,30]
[321458590,1712200299252,-155.35899174,0.0005507,120]
[321458591,1712200299261,-150.0,0.0005507,120]
[321458592,1712200299271,-150.0,0.00055071,120]
[321458593,1712200299280,-421.34817259,0.00055072,120]
[321458594,1712200299290,-191.58923616,0.00055072,120]
[321458595,1712200299299,-150.0,0.00055077,120]
[321458596,1712200299308,-155.0,0.00055079,120]
[321458597,1712200299318,-150.0,0.00055082,120]
[321458598,1712200299327,-421.34817259,0.00055083,120]
[321458599,1712200299337,-191.58923616,0.00055083,120]
[321458600,1712200299346,-238.86502259,0.00055084,120]
[321458601,1712200299356,-150.0,0.00055093,120]
[321458602,1712200299365,-421.34817259,0.00055094,120]
[321458603,1712200299374,-191.58923616,0.00055094,120]
[321458604,1712200299384,-169.66773342,0.00055095,99]
[321458605,1712200299393,-300.0,0.000551,15]
[321458606,1712200299402,-150.0,0.000551,12]
[321458607,1712200299414,-421.34817259,0.00055104,120]
[321458608,1712200299424,-191.58923616,0.00055104,120]
[321458609,1712200299433,-150.0,0.00055105,120]
[321458610,1712200299442,-152.36417668,0.00055111,120]
[321458611,1712200299451,-150.0,0.00055112,120]
[321458612,1712200299460,-421.34817259,0.00055115,120]
[321458613,1712200299469,-191.58923616,0.00055115,120]
[321458614,1712200299478,-150.0,0.00055116,120]
[321458615,1712200299487,-150.0,0.00055122,120]
[321458616,1712200299496,-500.0,0.00055123,120]
[321458617,1712200299505,-421.34817259,0.00055126,120]
[321458618,1712200299515,-191.58923616,0.00055126,120]
[321458619,1712200299524,-150.0,0.00055128,120]
[321458620,1712200299533,-238.86502259,0.00055129,120]
[321458621,1712200299543,-421.34817259,0.00055136,120]
[321458622,1712200299552,-191.58923616,0.00055136,120]
[321458623,1712200299561,-1893.58,0.00055137,120]
[321458624,1712200299570,-1893.58,0.00055137,120]
[321458625,1712200299580,-150.0,0.00055139,120]
[321458626,1712200299591,-500.0,0.00055141,35]
[321458627,1712200299600,-292.23916675,0.00055144,120]
[321458628,1712200299610,-421.34817259,0.00055147,120]
[321458629,1712200299619,-191.58923616,0.00055147,120]
[321458630,1712200299628,-150.0,0.00055147,120]
[321458631,1712200299638,-150.0,0.00055147,120]
[321458632,1712200299647,-150.0,0.00055147,120]
[321458633,1712200299657,-155.35899174,0.0005515,120]
[321458634,1712200299666,-154.068508,0.0005515,120]
[321458635,1712200299676,-150.0,0.00055151,120]
[321458636,1712200299685,-2923.05947,0.00055152,30]
[321458637,1712200299694,-421.34817259,0.00055158,120]
[321458638,1712200299704,-191.58923616,0.00055158,120]
[321458639,1712200299713,-150.0,0.00055162,120]
[321458640,1712200299723,-421.34817259,0.00055168,120]
[321458641,1712200299733,-191.58923616,0.00055168,120]
[321458642,1712200299742,-388.42808273,0.0005517,120]
[321458643,1712200299752,-150.0,0.00055174,120]
[321458644,1712200299761,-421.34817259,0.00055179,120]
[321458645,1712200299771,-191.58923616,0.00055179,120]
[321458646,1712200299781,-238.86502259,0.00055181,120]
[321458647,1712200299792,-150.0,0.00055182,120]
[321458648,1712200299801,-150.0,0.00055185,120]
[321458649,1712200299811,-153.79214004,0.00055188,120]
[321458650,1712200299820,-421.34817259,0.0005519,120]
[321458651,1712200299829,-191.58923616,0.0005519,120]
[321458652,1712200299841,-157.040411,0.00055194,117]
[321458653,1712200299850,-150.0,0.00055197,120]
[321458654,1712200299860,-421.34817259,0.000552,120]
[321458655,1712200299871,-191.58923616,0.000552,120]
[321458656,1712200299880,-500.0,0.00055205,120]
[321458657,1712200299889,-961.27,0.00055205,120]
[321458658,1712200299898,-150.0,0.00055208,120]
[321458659,1712200299908,-421.34817259,0.00055211,120]
[321458660,1712200299918,-191.58923616,0.00055211,120]
[321458661,1712200299928,-150.0,0.00055218,120]
[321458662,1712200299937,-150.0,0.00055218,120]
[321458663,1712200299948,-150.0,0.0005522,120]
[321458664,1712200299958,-238.86502284,0.0005522,120]
[321458665,1712200299968,-153.89032095,0.00055221,120]
[321458666,1712200299977,-421.34817259,0.00055222,120]
[321458667,1712200299986,-191.58923616,0.00055222,120]
[321458668,1712200299996,-152.0,0.00055224,19]
[321458669,1712200300006,-197.97595364,0.00055225,120]
[321458670,1712200300015,-150.0,0.00055231,120]
[321458671,1712200300025,-421.34817259,0.00055232,120]
[321458672,1712200300034,-191.58923616,0.00055232,120]
[321458673,1712200300044,-150.0,0.00055243,120]
[321458674,1712200300054,-421.34817259,0.00055243,120]
[321458675,1712200300063,-191.58923616,0.00055243,120]
[321458676,1712200300073,-211.99904334,0.00055246,120]
[321458677,1712200300084,-150.0,0.00055253,120]
[321458678,1712200300093,-421.34817259,0.00055254,120]
[321458679,1712200300102,-191.58923616,0.00055254,120]
[321458680,1712200300112,-150.0,0.00055254,120]
[321458681,1712200300121,-421.34817259,0.00055265,120]
[321458682,1712200300130,-191.58923616,0.00055265,120]
[321458683,1712200300139,-150.0,0.00055266,120]
[321458684,1712200300148,-400.0,0.0005527,30]
[321458685,1712200300158,-1000.0,0.0005527,30]
[321458686,1712200300166,-604.22994504,0.0005527,120]
[321458687,1712200300175,-421.34817259,0.00055275,120]
[321458688,1712200300185,-191.58923616,0.00055275,120]
[321458689,1712200300194,-400.70968906,0.00055276,120]
[321458690,1712200300204,-508.5998955,0.00055276,120]
[321458691,1712200300213,-150.0,0.00055277,120]
[321458692,1712200300222,-155.35899185,0.0005528,120]
[321458693,1712200300233,-421.34817259,0.00055286,120]
[321458694,1712200300243,-191.58923616,0.00055286,120]
[321458695,1712200300253,-500.0,0.00055287,120]
[321458696,1712200300262,-150.0,0.00055288,120]
[321458697,1712200300272,-150.0,0.00055289,120]
[321458698,1712200300281,-200.0,0.00055289,15]
[321458699,1712200300290,-421.34817259,0.00055297,120]
[321458700,1712200300299,-191.58923616,0.00055297,120]
[321458701,1712200300308,-961.0,0.000553,44]
[321458702,1712200300317,-150.0,0.000553,120]
[321458703,1712200300326,-150.0,0.000553,34]
[321458704,1712200300337,-999.0,0.000553,40]
[321458705,1712200300346,-1000.0,0.000553,7]
[321458706,1712200300355,-200.0,0.000553,34]
[321458707,1712200300365,-150.0,0.000553,120]
[321458708,1712200300374,-421.34817259,0.00055307,120]
[321458709,1712200300383,-191.58923616,0.00055307,120]
[321458710,1712200300392,-150.0,0.00055312,120]
[321458711,1712200300402,-1151.93,0.00055315,120]
[321458712,1712200300411,-421.34817259,0.00055318,120]
[321458713,1712200300420,-191.58923616,0.00055318,120]
[321458714,1712200300429,-604.22994505,0.00055323,120]
[321458715,1712200300438,-150.0,0.00055323,120]
[321458716,1712200300447,-150.0,0.00055323,120]
[321458717,1712200300456,-150.0,0.00055323,120]
[321458718,1712200300464,-150.0,0.00055323,120]
[321458719,1712200300474,-421.34817259,0.00055329,120]
[321458720,1712200300483,-191.58923616,0.00055329,120]
[321458721,1712200300492,-150.0,0.00055335,120]
[321458722,1712200300501,-421.34817259,0.00055339,120]
[321458723,1712200300511,-191.58923616,0.00055339,120]
[321458724,1712200300520,-12099.58116052,0.00055341,15]
[321458725,1712200300529,-38242.17669179,0.00055341,15]
[321458726,1712200300538,-1005.42069864,0.00055341,15]
[321458727,1712200300547,-5702.25321371,0.00055341,15]
[321458728,1712200300556,-500.0,0.00055342,30]
[321458729,1712200300566,-500.0,0.00055342,120]
[321458730,1712200300575,-500.0,0.00055342,120]
[321458731,1712200300585,-500.0,0.00055342,120]
[321458732,1712200300594,-500.0,0.00055342,120]
[321458733,1712200300604,-500.0,0.00055342,120]
[321458734,1712200300613,-514.21668029,0.00055342,120]
[321458735,1712200300622,-511.95274914,0.00055342,120]
[321458736,1712200300632,-500.0,0.00055342,120]
[321458737,1712200300642,-514.25549807,0.00055342,120]
[321458738,1712200300651,-500.0,0.00055342,120]
[321458739,1712200300660,-500.0,0.00055342,120]
[321458740,1712200300670,-501.51245035,0.00055342,120]
[321458741,1712200300679,-500.0,0.00055342,120]
[321458742,1712200300689,-500.0,0.00055342,120]
[321458743,1712200300698,-473.22201929,0.00055342,120]
[321458744,1712200300707,-681.87,0.00055342,120]
[321458745,1712200300716,-500.0,0.00055342,120]
[321458746,1712200300725,-325.68803425,0.00055342,120]
[321458747,1712200300734,-500.0,0.00055342,120]
[321458748,1712200300743,-723.7,0.00055342,120]
[321458749,1712200300753,-728.77,0.00055342,120]
[321458750,1712200300762,-548.65183817,0.00055342,120]
[321458751,1712200300771,-527.58273951,0.00055342,120]
[321458752,1712200300781,-584.05,0.00055342,120]
[321458753,1712200300790,-500.0,0.00055342,120]
[321458754,1712200300799,-974.99,0.00055342,120]
[321458755,1712200300809,-500.0,0.00055342,120]
[321458756,1712200300818,-500.0,0.00055342,120]
[321458757,1712200300828,-500.0,0.00055342,120]
[321458758,1712200300839,-500.0,0.00055342,120]
[321458759,1712200300848,-500.0,0.00055342,120]
[321458760,1712200300857,-500.0,0.00055342,2]
[321458761,1712200300871,-151.0,0.00055342,120]
[321458762,1712200300880,-500.0,0.00055342,120]
[321458763,1712200300890,-522.40060036,0.00055342,120]
[321458764,1712200300899,-500.0,0.00055342,120]
[321458765,1712200300910,-415.76646388,0.00055342,120]
[321458766,1712200300920,-500.0,0.00055342,120]
[321458767,1712200300929,-578.06,0.00055342,120]
[321458768,1712200300940,-618.09,0.00055342,120]
[321458769,1712200300949,-521.97753702,0.00055342,120]
[321458770,1712200300959,-500.0,0.00055342,120]
[321458771,1712200300969,-461.75715356,0.00055342,120]
[321458772,1712200300978,-500.0,0.00055342,120]
[321458773,1712200300988,-500.0,0.00055342,120]
[321458774,1712200300997,-500.0,0.00055342,120]
[321458775,1712200301007,-500.0,0.00055342,120]
[321458776,1712200301016,-500.0,0.00055342,120]
[321458777,1712200301026,-500.0,0.00055342,120]
[321458778,1712200301036,-500.0,0.00055342,120]
[321458779,1712200301045,-500.0,0.00055342,120]
[321458780,1712200301055,-500.0,0.00055342,120]
[321458781,1712200301065,-500.0,0.00055342,120]
[321458782,1712200301075,-539.8,0.00055342,120]
[321458783,1712200301084,-530.29551611,0.00055342,120]
[321458784,1712200301094,-500.0,0.00055342,120]
[321458785,1712200301190,-500.0,0.00055342,120]
[321458786,1712200301200,-500.0,0.00055342,120]
[321458787,1712200301209,-500.0,0.00055342,120]
[321458788,1712200301218,-500.0,0.00055342,120]
[321458789,1712200301228,-560.72,0.00055342,120]
[321458790,1712200301237,-500.0,0.00055342,120]
[321458791,1712200301246,-151.0,0.00055342,120]
[321458792,1712200301255,-500.0,0.00055342,120]
[321458793,1712200301265,-500.0,0.00055342,2]
[321458794,1712200301274,-675.6,0.00055342,120]
[321458795,1712200301284,-500.0,0.00055342,120]
[321458796,1712200301293,-500.0,0.00055342,120]
[321458797,1712200301302,-500.0,0.00055342,120]
[321458798,1712200301311,-500.0,0.00055342,120]
[321458799,1712200301320,-521.27108368,0.00055342,120]
[321458800,1712200301329,-500.0,0.00055342,120]
[321458801,1712200301338,-674.64,0.00055342,120]
[321458802,1712200301347,-532.24,0.00055342,120]
[321458803,1712200301357,-500.0,0.00055342,120]
[321458804,1712200301366,-151.0,0.00055342,120]
[321458805,1712200301375,-500.0,0.00055342,120]
[321458806,1712200301384,-479.41755445,0.00055342,120]
[321458807,1712200301393,-500.0,0.00055342,120]
[321458808,1712200301403,-500.0,0.00055342,120]
[321458809,1712200301412,-325.7983238,0.00055342,120]
[321458810,1712200301421,-518.08,0.00055342,120]
[321458811,1712200301431,-151.0,0.00055342,120]
[321458812,1712200301440,-813.48,0.00055342,120]
[321458813,1712200301450,-500.0,0.00055342,120]
[321458814,1712200301460,-500.0,0.00055342,120]
[321458815,1712200301469,-500.0,0.00055342,120]
[321458816,1712200301479,-631.14,0.00055342,120]
[321458817,1712200301489,-500.0,0.00055342,120]
[321458818,1712200301498,-500.0,0.00055342,120]
[321458819,1712200301507,-500.0,0.00055342,120]
[321458820,1712200301517,-500.0,0.00055342,120]
[321458821,1712200301526,-151.0,0.00055342,120]
[321458822,1712200301535,-500.0,0.00055342,120]
[321458823,1712200301545,-551.64776235,0.00055342,120]
[321458824,1712200301554,-153.312658,0.00055342,120]
[321458825,1712200301564,-500.0,0.00055342,120]
[321458826,1712200301573,-797.4,0.00055342,120]
[321458827,1712200301583,-514.25510863,0.00055342,120]
[321458828,1712200301598,-500.0,0.00055342,120]
[321458829,1712200301608,-151.0,0.00055342,120]
[321458830,1712200301617,-500.0,0.00055342,120]
[321458831,1712200301648,-961.27,0.00055342,120]
[321458832,1712200301657,-658.74,0.00055342,120]
[321458833,1712200301667,-818.65,0.00055342,120]
[321458834,1712200301677,-151.0,0.00055342,120]
[321458835,1712200301686,-752.9,0.00055342,120]
[321458836,1712200301696,-208.417087,0.00055342,120]
[321458837,1712200301705,-539.48,0.00055342,120]
[321458838,1712200301715,-627.02070501,0.00055342,120]
[321458839,1712200301725,-500.0,0.00055342,120]
[321458840,1712200301734,-500.0,0.00055342,120]
[321458841,1712200301744,-500.0,0.00055342,120]
[321458842,1712200301754,-500.0,0.00055342,120]
[321458843,1712200301763,-2000.0,0.00055342,120]
[321458844,1712200301773,-500.0,0.00055342,120]
[321458845,1712200301782,-500.0,0.00055342,120]
[321458846,1712200301792,-545.69571404,0.00055342,120]
[321458847,1712200301801,-500.0,0.00055342,120]
[321458848,1712200301810,-500.0,0.00055342,120]
[321458849,1712200301820,-500.0,0.00055342,120]
[321458850,1712200301829,-522.1445255,0.00055342,120]
[321458851,1712200301843,-500.0,0.00055342,120]
[321458852,1712200301853,-151.0,0.00055342,120]
[321458853,1712200301865,-500.0,0.00055342,120]
[321458854,1712200301874,-500.0,0.00055342,120]
[321458855,1712200301883,-523.8472413,0.00055342,120]
[321458856,1712200301892,-1653.33,0.00055342,2]
[321458857,1712200301902,-259.233093,0.00055342,7]
[321458858,1712200301911,-500.0,0.00055342,120]
[321458859,1712200301919,-259.233093,0.00055342,7]
[321458860,1712200301929,-500.0,0.00055342,120]
[321458861,1712200301939,-735.54,0.00055342,120]
[321458862,1712200301949,-500.0,0.00055342,120]
[321458863,1712200301958,-500.0,0.00055342,120]
[321458864,1712200301968,-500.0,0.00055342,120]
[321458865,1712200301977,-500.0,0.00055342,120]
[321458866,1712200301987,-500.0,0.00055342,120]
[321458867,1712200301996,-600.0,0.00055342,2]
[321458868,1712200302006,-676.77,0.00055342,120]
[321458869,1712200302015,-500.0,0.00055342,120]
[321458870,1712200302024,-919.9,0.00055342,120]
[321458871,1712200302034,-500.0,0.00055342,120]
[321458872,1712200302043,-500.0,0.00055342,120]
[321458873,1712200302053,-500.0,0.00055342,120]
[321458874,1712200302062,-243.87753501,0.00055342,120]
[321458875,1712200302071,-573.69,0.00055342,120]
[321458876,1712200302080,-703.82,0.00055342,120]
[321458877,1712200302093,-500.0,0.00055342,120]
[321458878,1712200302103,-151.0,0.00055342,120]
[321458879,1712200302113,-511.22593466,0.00055342,120]
[321458880,1712200302122,-1029.43,0.00055342,120]
[321458881,1712200302131,-158.03622901,0.00055342,120]
[321458882,1712200302141,-500.0,0.00055342,120]
[321458883,1712200302150,-875.1,0.00055342,120]
[321458884,1712200302158,-151.0,0.00055342,120]
[321458885,1712200302167,-500.0,0.00055342,120]
[321458886,1712200302176,-2209.07,0.00055342,120]
[321458887,1712200302186,-533.76217971,0.00055342,120]
[321458888,1712200302195,-705.27,0.00055342,120]
[321458889,1712200302204,-500.0,0.00055342,120]
[321458890,1712200302213,-751.57,0.00055342,120]
[321458891,1712200302223,-500.0,0.00055342,120]
[321458892,1712200302232,-1008.2,0.00055342,120]
[321458893,1712200302241,-500.0,0.00055342,120]
[321458894,1712200302250,-2122.58,0.00055342,120]
[321458895,1712200302260,-533.64750199,0.00055342,120]
[321458896,1712200302268,-1103.16,0.00055342,120]
[321458897,1712200302277,-514.46,0.00055342,120]
[321458898,1712200302286,-929.17,0.00055342,120]
[321458899,1712200302295,-151.0,0.00055342,120]
[321458900,1712200302304,-1658.5,0.00055342,30]
[321458901,1712200302314,-1919.06349151,0.00055342,120]
[321458902,1712200302323,-500.0,0.00055342,120]
[321458903,1712200302332,-668.56,0.00055342,120]
[321458904,1712200302345,-1348.04,0.00055342,120]
[321458905,1712200302353,-500.0,0.00055342,120]
[321458906,1712200302363,-500.0,0.00055342,120]
[321458907,1712200302372,-1849.99,0.00055342,120]
[321458908,1712200302381,-1432.04,0.00055342,120]
[321458909,1712200302391,-500.0,0.00055342,120]
[321458910,1712200302400,-938.115971,0.00055342,120]
[321458911,1712200302410,-509.61,0.00055342,120]
[321458912,1712200302419,-500.0,0.00055342,120]
[321458913,1712200302428,-500.0,0.00055342,120]
[321458914,1712200302438,-1244.36,0.00055342,120]
[321458915,1712200302447,-954.07,0.00055342,120]
[321458916,1712200302457,-1303.95,0.00055342,120]
[321458917,1712200302466,-500.0,0.00055342,120]
[321458918,1712200302475,-500.0,0.00055342,120]
[321458919,1712200302485,-1278.23,0.00055342,120]
[321458920,1712200302494,-500.0,0.00055342,120]
[321458921,1712200302503,-706.05,0.00055342,120]
[321458922,1712200302513,-151.0,0.00055342,7]
[321458923,1712200302523,-500.0,0.00055342,120]
[321458924,1712200302533,-888.96,0.00055342,120]
[321458925,1712200302542,-1327.35,0.00055342,120]
[321458926,1712200302551,-452.4904359,0.00055342,120]
[321458927,1712200302560,-540.54,0.00055342,120]
[321458928,1712200302569,-500.0,0.00055342,120]
[321458929,1712200302578,-500.0,0.00055342,120]
[321458930,1712200302588,-500.0,0.00055342,120]
[321458931,1712200302602,-575.29,0.00055342,120]
[321458932,1712200302611,-1122.07,0.00055342,120]
[321458933,1712200302620,-500.0,0.00055342,120]
[321458934,1712200302629,-1000.0,0.00055342,30]
[321458935,1712200302640,-500.0,0.00055342,120]
[321458936,1712200302651,-1600.52,0.00055342,120]
[321458937,1712200302660,-159.767798,0.00055342,120]
[321458938,1712200302671,-500.0,0.00055342,120]
[321458939,1712200302681,-500.0,0.00055342,120]
[321458940,1712200302691,-500.0,0.00055342,120]
[321458941,1712200302701,-500.0,0.00055342,120]
[321458942,1712200302711,-500.0,0.00055342,120]
[321458943,1712200302720,-937.01,0.00055342,120]
[321458944,1712200302730,-835.22,0.00055342,120]
[321458945,1712200302739,-500.0,0.00055342,120]
[321458946,1712200302748,-500.0,0.00055342,120]
[321458947,1712200302757,-611.33,0.00055342,120]
[321458948,1712200302767,-500.0,0.00055342,120]
[321458949,1712200302776,-500.0,0.00055342,120]
[321458950,1712200302786,-500.0,0.00055342,120]
[321458951,1712200302796,-199.165063,0.00055342,120]
[321458952,1712200302806,-500.0,0.00055342,120]
[321458953,1712200302815,-549.4462551,0.00055342,120]
[321458954,1712200302824,-632.85,0.00055342,120]
[321458955,1712200302834,-680.97,0.00055342,120]
[321458956,1712200302848,-563.55109807,0.00055342,120]
[321458957,1712200302858,-500.0,0.00055342,120]
[321458958,1712200302870,-1123.71,0.00055342,120]
[321458959,1712200302879,-984.42,0.00055342,120]
[321458960,1712200302888,-500.0,0.00055342,120]
[321458961,1712200302897,-500.0,0.00055342,120]
[321458962,1712200302907,-500.0,0.00055342,120]
[321458963,1712200302917,-500.0,0.00055342,120]
[321458964,1712200302926,-500.0,0.00055342,120]
[321458965,1712200302935,-1117.68,0.00055342,120]
[321458966,1712200302946,-500.0,0.00055342,120]
[321458967,1712200302956,-489.71300776,0.00055342,120]
[321458968,1712200302966,-1174.17,0.00055342,120]
[321458969,1712200302975,-453.93147535,0.00055342,120]
[321458970,1712200302985,-871.46,0.00055342,120]
[321458971,1712200302994,-151.0,0.00055342,120]
[321458972,1712200303003,-500.0,0.00055342,120]
[321458973,1712200303013,-279.871932,0.00055342,14]
[321458974,1712200303022,-500.0,0.00055342,120]
[321458975,1712200303034,-208.230204,0.00055342,120]
[321458976,1712200303044,-500.0,0.00055342,120]
[321458977,1712200303054,-1213.04,0.00055342,120]
[321458978,1712200303064,-2563.86,0.00055342,120]
[321458979,1712200303075,-279.871932,0.00055342,14]
[321458980,1712200303085,-931.42,0.00055342,120]
[321458981,1712200303098,-516.8,0.00055342,120]
[321458982,1712200303108,-502.98190927,0.00055342,120]
[321458983,1712200303119,-661.04,0.00055342,120]
[321458984,1712200303129,-961.33,0.00055342,120]
[321458985,1712200303140,-500.0,0.00055342,120]
[321458986,1712200303150,-1186.25,0.00055342,120]
[321458987,1712200303160,-500.0,0.00055342,120]
[321458988,1712200303170,-500.0,0.00055342,120]
[321458989,1712200303180,-1011.46,0.00055342,120]
[321458990,1712200303191,-500.0,0.00055342,120]
[321458991,1712200303201,-664.68,0.00055342,120]
[321458992,1712200303211,-525.57460649,0.00055342,120]
[321458993,1712200303224,-500.0,0.00055342,120]
[321458994,1712200303234,-500.0,0.00055342,120]
[321458995,1712200303245,-500.0,0.00055342,120]
[321458996,1712200303256,-500.0,0.00055342,120]
[321458997,1712200303266,-522.93705797,0.00055342,120]
[321458998,1712200303276,-1280.05,0.00055342,120]
[321458999,1712200303286,-500.0,0.00055342,120]
[321459000,1712200303296,-500.0,0.00055342,120]
[321459001,1712200303306,-1040.16,0.00055342,120]
[321459002,1712200303318,-861.11,0.00055342,120]
[321459003,1712200303328,-557.2980918,0.00055342,120]
[321459004,1712200303340,-210.7323734,0.00055342,120]
[321459005,1712200303348,-1456.17,0.00055342,120]
[321459006,1712200303358,-340.729012,0.00055342,120]
[321459007,1712200303367,-554.95,0.00055342,120]
[321459008,1712200303376,-340.729012,0.00055342,120]
[321459009,1712200303386,-500.0,0.00055342,120]
[321459010,1712200303395,-553.76622259,0.00055342,120]
[321459011,1712200303404,-979.87,0.00055342,120]
[321459012,1712200303413,-1376.36,0.00055342,120]
[321459013,1712200303423,-688.56,0.00055342,120]
[321459014,1712200303433,-798.23,0.00055342,120]
[321459015,1712200303443,-1326.85,0.00055342,120]
[321459016,1712200303453,-2000.0,0.00055342,30]
[321459017,1712200303462,-1138.59,0.00055342,120]
[321459018,1712200303472,-323.357105,0.00055342,120]
[321459019,1712200303482,-500.0,0.00055342,120]
[321459020,1712200303492,-151.0,0.00055342,120]
[321459021,1712200303502,-500.0,0.00055342,120]
[321459022,1712200303511,-500.0,0.00055342,120]
[321459023,1712200303522,-500.0,0.00055342,120]
[321459024,1712200303531,-323.357105,0.00055342,120]
[321459025,1712200303542,-512.74,0.00055342,120]
[321459026,1712200303551,-966.92,0.00055342,120]
[321459027,1712200303561,-580.58,0.00055342,120]
[321459028,1712200303572,-500.0,0.00055342,2]
[321459029,1712200303582,-533.10565723,0.00055342,120]
[321459030,1712200303599,-1234.52,0.00055342,120]
[321459031,1712200303609,-2833.97,0.00055342,120]
[321459032,1712200303618,-500.0,0.00055342,120]
[321459033,1712200303627,-1217.52,0.00055342,120]